bitfinex/quotes_ETHUSD_20240630
["timestamp","ask_amount","ask_price","bid_price","bid_amount"]
[1719720662211,0.83611958,3375.0,3374.6,3.60175178]
[1719720662500,0.10177377,3374.7,3374.6,3.0]
[1719720662667,0.83611958,3375.0,3374.5,5.2796]
[1719720662867,0.10177377,3374.7,3374.6,0.38326]
[1719720663063,0.83611958,3375.0,3374.6,3.0]
[1719720663273,0.10177377,3374.7,3374.6,3.0]
[1719720663508,0.83611958,3375.0,3374.5,2.2796]
[1719720663509,0.83611958,3375.0,3374.5,5.2796]
[1719720663719,0.10177377,3374.7,3374.5,5.96286]
[1719720663931,0.83611958,3375.0,3374.5,5.2796]
[1719720664106,0.10176401,3374.6,3374.5,3.0]
[1719720664403,7.33,3375.1,3375.0,0.542]
[1719720664609,2.59,3375.5,3375.4,2.4343]
[1719720664610,9.92,3375.5,3375.4,2.4343]
[1719720664765,10.75563049,3375.5,3375.4,2.73193]
[1719720664967,10.75563049,3375.5,3375.4,5.73193]
[1719720666476,10.75563049,3375.5,3375.4,5.4343]
[1719720667532,10.7556326,3375.5,3375.4,5.4343]
[1719720668677,10.75563241,3375.5,3375.4,5.4343]
[1719720668838,9.92,3375.5,3375.4,5.4343]
[1719720669197,10.75561254,3375.5,3375.4,5.4343]
[1719720670123,9.92,3375.5,3375.4,5.4343]
[1719720670436,9.92,3375.5,3375.4,6.03193]
[1719720670646,10.75565962,3375.5,3375.4,6.03193]
[1719720670935,9.92,3375.5,3375.4,6.03193]
[1719720673743,9.92,3375.5,3375.4,3.59763]
[1719720673882,10.75568642,3375.5,3375.4,0.59763]
[1719720674087,10.75568642,3375.5,3375.4,3.0]
[1719720674388,10.75568642,3375.5,3375.3,3.542]
[1719720674699,9.92,3375.5,3375.3,3.542]
[1719720676443,0.09511601,3375.4,3375.3,3.542]
[1719720680038,0.9308687,3375.4,3375.3,3.542]
[1719720680246,0.09511601,3375.4,3375.3,3.542]
[1719720683990,0.09511601,3375.4,3375.3,3.0]
[1719720684186,1.93251698,3375.4,3374.9,3.0]
[1719720684426,1.09662761,3375.4,3374.9,3.0]
[1719720684632,0.83586353,3375.3,3374.9,3.0]
[1719720684795,0.0951773,3375.3,3374.9,3.0]
[1719720687587,0.83581433,3375.4,3374.9,3.0]
[1719720687698,0.09515108,3375.2,3374.9,3.0]
[1719720687893,0.83581433,3375.4,3374.9,3.0]
[1719720688121,0.09516083,3375.3,3374.9,3.0]
[1719720688336,0.09516083,3375.3,3375.1,0.542]
[1719720689403,0.83575467,3375.4,3375.1,0.542]
[1719720689604,0.09515108,3375.2,3375.1,0.542]
[1719720689832,0.83575467,3375.4,3375.3,0.542]
[1719720690032,9.92,3375.5,3375.3,0.542]
[1719720690741,0.83575619,3375.4,3375.3,0.542]
[1719720690927,9.92,3375.5,3375.3,0.542]
[1719720691424,0.09517058,3375.4,3375.3,0.542]
[1719720693275,0.09517058,3375.4,3375.3,3.542]
[1719720693584,0.09517058,3375.4,3375.3,4.21623]
[1719720699157,0.09517058,3375.4,3375.3,1.21623]
[1719720702189,0.93079035,3375.4,3375.3,1.21623]
[1719720702484,0.93079035,3375.4,3375.3,0.542]
[1719720703543,0.93084219,3375.4,3375.3,0.542]
[1719720706706,0.09517058,3375.4,3375.3,0.542]
[1719720706873,0.93085158,3375.4,3375.3,0.542]
[1719720707075,0.09517058,3375.4,3375.3,0.542]
[1719720707271,0.93086136,3375.4,3375.3,0.542]
[1719720707920,0.07127394,3375.4,3375.3,0.542]
[1719720708223,0.16324547,3375.4,3375.3,0.542]
[1719720709808,0.09197153,3375.4,3375.3,0.542]
[1719720722911,0.59735767,3375.4,3375.3,0.542]
[1719720723924,2.2599,3375.3,3375.2,3.0]
[1719720724220,3.08402191,3375.3,3375.1,0.542]
[1719720724393,0.50538614,3375.2,3375.1,0.542]
[1719720724836,0.59739958,3375.2,3375.1,0.542]
[1719720725229,0.59757431,3375.2,3375.1,0.542]
[1719720728341,0.59762803,3375.2,3375.1,0.542]
[1719720728727,0.59762803,3375.2,3374.8,3.0]
[1719720728932,1.14238083,3375.2,3374.6,1.405]
[1719720729142,0.59762803,3375.2,3374.9,0.542]
[1719720731448,0.09201344,3375.2,3374.9,0.542]
[1719720731611,0.59770645,3375.2,3374.9,0.542]
[1719720732015,0.59770742,3375.2,3374.9,0.542]
[1719720734635,0.09201344,3375.2,3374.9,0.542]
[1719720734836,0.5976437,3375.2,3374.9,0.542]
[1719720735009,0.50563026,3375.2,3374.9,0.542]
[1719720735215,0.09194082,3375.1,3374.9,0.542]
[1719720736453,0.09194082,3375.1,3374.9,1.21933]
[1719720736758,0.09194082,3375.1,3375.0,3.2313]
[1719720736933,0.09194082,3375.1,3375.0,6.2313]
[1719720737134,0.50563026,3375.4,3375.0,6.2313]
[1719720737449,0.50563026,3375.4,3375.2,1.405]
[1719720737652,0.09196032,3375.3,3375.2,1.405]
[1719720738358,0.09196032,3375.3,3375.2,0.542]
[1719720742261,0.09196032,3375.3,3375.2,3.542]
[1719720742415,0.09196032,3375.3,3375.2,4.405]
[1719720745218,0.50537918,3375.4,3375.2,4.405]
[1719720745454,0.09199176,3375.3,3375.2,4.405]
[1719720746449,0.50537918,3375.6,3375.2,4.405]
[1719720746668,0.09199176,3375.3,3375.2,4.405]
[1719720746855,0.50537918,3375.6,3375.2,4.405]
[1719720747061,0.09199176,3375.3,3375.2,4.405]
[1719720747235,0.50537918,3375.6,3375.2,4.405]
[1719720747426,0.09199176,3375.3,3375.2,4.405]
[1719720747626,0.50534471,3375.6,3375.2,4.405]
[1719720747863,0.09199176,3375.3,3375.2,4.405]
[1719720748070,0.50534471,3375.6,3375.2,4.405]
[1719720748264,0.09199176,3375.3,3375.2,4.405]
[1719720748449,0.50534471,3375.6,3375.2,4.405]
[1719720749072,0.09201126,3375.5,3375.2,4.405]
[1719720751370,0.50535375,3375.6,3375.2,4.405]
[1719720751585,0.0919808,3375.4,3375.2,4.405]
[1719720751783,0.50535375,3375.6,3375.5,0.542]
[1719720751985,0.50535375,3375.7,3375.5,0.542]
[1719720753604,0.08883034,3375.6,3375.5,0.542]
[1719720753930,0.08883034,3375.6,3375.5,1.05647779]
[1719720756231,0.08883034,3375.6,3375.5,4.05647779]
[1719720763450,2.59,3375.8,3375.5,4.05647779]
[1719720763633,0.08885275,3375.6,3375.5,3.542]
[1719720763839,2.59,3375.8,3375.5,3.542]
[1719720764350,0.088864,3375.7,3375.5,3.542]
[1719720767846,0.088864,3375.7,3375.6,0.863]
[1719720773849,0.59408283,3375.7,3375.6,0.863]
[1719720775576,0.088864,3375.7,3375.6,0.863]
[1719720775866,0.59408372,3375.7,3375.6,0.863]
[1719720776735,0.088864,3375.7,3375.6,0.863]
[1719720776929,0.59407842,3375.7,3375.6,0.863]
[1719720778876,0.59407842,3375.7,3375.5,3.542]
[1719720780076,0.088864,3375.7,3375.5,3.542]
[1719720780245,0.59405849,3375.7,3375.5,3.542]
[1719720782489,0.088864,3375.7,3375.5,3.542]
[1719720782658,0.59401686,3375.7,3375.5,3.542]
[1719720785763,0.59401472,3375.7,3375.5,3.542]
[1719720787010,0.59401472,3375.7,3375.6,3.0]
[1719720787162,0.59401472,3375.7,3375.5,0.542]
[1719720788912,0.088864,3375.7,3375.5,0.542]
[1719720789118,0.59402825,3375.7,3375.5,0.542]
[1719720795102,0.088864,3375.7,3375.5,0.542]
[1719720795291,0.59403041,3375.7,3375.5,0.542]
[1719720795492,0.088864,3375.7,3375.5,0.542]
[1719720795693,0.59402752,3375.7,3375.5,0.542]
[1719720798153,0.59407023,3375.7,3375.5,0.542]
[1719720798439,0.59407066,3375.7,3375.5,0.542]
[1719720801422,0.59407066,3375.7,3375.3,3.0]
[1719720801750,2.475,3375.6,3375.2,0.542]
[1719720802049,0.59409556,3375.5,3375.2,0.542]
[1719720802600,0.59409556,3375.5,3375.4,0.542]
[1719720802900,0.08888241,3375.5,3375.4,0.542]
[1719720803215,0.50521315,3375.7,3375.4,0.542]
[1719720803412,0.08887896,3375.5,3375.4,0.542]
[1719720803626,0.50521315,3375.7,3375.4,0.542]
[1719720804114,0.0888887,3375.6,3375.4,0.542]
[1719720804968,0.50520997,3375.7,3375.4,0.542]
[1719720805115,0.08888169,3375.6,3375.4,0.542]
[1719720808220,2.4194,3375.5,3375.1,0.542]
[1719720808475,2.4194,3375.5,3375.3,0.542]
[1719720808476,0.50530108,3375.4,3375.3,0.542]
[1719720808779,0.59418225,3375.4,3375.1,0.542]
[1719720809321,1.45718225,3375.4,3375.1,0.542]
[1719720809822,0.5054338,3375.3,3375.1,0.542]
[1719720810137,0.08894501,3375.2,3375.1,0.542]
[1719720810338,0.5054338,3375.4,3375.1,0.542]
[1719720810536,0.08895477,3375.3,3375.1,0.542]
[1719720816225,0.08895477,3375.3,3374.9,0.542]
[1719720817693,0.59446547,3375.3,3374.9,0.542]
[1719720817835,0.08895477,3375.3,3374.9,0.542]
[1719720818555,0.863,3375.0,3374.9,3.0]
[1719720818753,0.863,3375.0,3374.7,0.542]
[1719720818754,2.2816,3374.9,3374.7,0.542]
[1719720818954,0.59132607,3374.8,3374.7,0.542]
[1719720820500,0.08581592,3374.8,3374.7,0.542]
[1719720825001,0.50572665,3375.1,3374.7,0.542]
[1719720825294,0.08578954,3374.8,3374.7,0.542]
[1719720825460,0.50572665,3375.1,3374.7,0.542]
[1719720825657,0.08579833,3374.8,3374.7,0.542]
[1719720825863,0.50572665,3375.1,3374.7,0.542]
[1719720826064,0.08579833,3374.8,3374.7,0.542]
[1719720826265,0.50572665,3375.1,3374.7,0.542]
[1719720826466,0.08579833,3374.8,3374.7,0.542]
[1719720826810,0.08580583,3374.8,3374.7,0.542]
[1719720826995,0.50572665,3375.1,3374.7,0.542]
[1719720827305,0.08580583,3374.8,3374.7,0.542]
[1719720827484,2.4021,3375.2,3374.7,0.542]
[1719720827684,0.08581163,3374.8,3374.7,0.542]
[1719720827870,2.4021,3375.2,3374.7,0.542]
[1719720828069,2.72861,3375.2,3374.7,0.542]
[1719720828369,0.08584089,3375.1,3374.7,0.542]
[1719720828814,0.50566995,3375.3,3374.9,0.542]
[1719720829897,0.0858745,3375.4,3375.1,0.542]
[1719720830815,0.08583779,3375.3,3375.1,0.542]
[1719720831193,0.50551895,3375.5,3375.1,0.542]
[1719720831392,0.08585498,3375.2,3375.1,0.542]
[1719720831623,0.50551895,3375.5,3375.1,0.542]
[1719720831787,0.08585315,3375.2,3375.1,0.542]
[1719720832003,0.50551895,3375.5,3375.1,0.542]
[1719720832229,0.08586962,3375.2,3375.1,0.542]
[1719720832528,0.50551895,3375.5,3375.1,0.542]
[1719720832710,0.08586962,3375.2,3375.1,0.542]
[1719720833235,0.50551895,3375.5,3375.1,0.542]
[1719720833443,0.08586962,3375.2,3375.1,0.542]
[1719720833637,9.7321,3375.6,3375.1,0.542]
[1719720833638,0.50549054,3375.5,3375.1,0.542]
[1719720833924,0.08586962,3375.2,3375.1,0.542]
[1719720834129,0.50549054,3375.5,3375.1,0.542]
[1719720834281,0.08586962,3375.2,3375.1,0.542]
[1719720834482,0.50549054,3375.5,3375.1,0.542]
[1719720834683,0.08586962,3375.2,3375.1,0.542]
[1719720834882,0.50549054,3375.5,3375.1,0.542]
[1719720835084,0.08588009,3375.2,3375.1,0.542]
[1719720835285,0.50549054,3375.5,3375.1,0.542]
[1719720835825,0.08589959,3375.4,3375.1,0.542]
[1719720837105,0.50550226,3375.5,3375.1,0.542]
[1719720837284,0.08589134,3375.3,3375.1,0.542]
[1719720837484,0.50550226,3375.5,3375.1,0.542]
[1719720837686,0.08588159,3375.2,3375.1,0.542]
[1719720838210,0.50550226,3375.5,3375.1,0.542]
[1719720838379,0.08588159,3375.2,3375.1,0.542]
[1719720838584,0.37706023,3375.4,3375.1,0.542]
[1719720838831,0.08589134,3375.3,3375.1,0.542]
[1719720842487,0.08589134,3375.3,3374.9,3.0]
[1719720842733,0.08589134,3375.3,3374.8,0.542]
[1719720842734,2.2923,3375.2,3374.8,0.542]
[1719720843103,0.08586884,3375.1,3374.8,0.542]
[1719720847054,0.59150865,3375.1,3374.8,0.542]
[1719720848947,0.59156008,3375.1,3374.8,0.542]
[1719720851935,0.08586884,3375.1,3374.8,0.542]
[1719720852238,0.59156428,3375.1,3374.8,0.542]
[1719720855023,0.08586884,3375.1,3374.8,0.542]
[1719720855196,0.59159808,3375.1,3374.8,0.542]
[1719720855604,0.59159762,3375.1,3374.8,0.542]
[1719720858157,0.59159754,3375.1,3374.8,0.542]
[1719720858336,0.08586884,3375.1,3374.8,0.542]
[1719720858647,0.59159754,3375.1,3374.8,0.542]
[1719720861221,2.2904,3375.0,3374.4,3.69]
[1719720861410,0.5057287,3374.9,3374.4,3.69]
[1719720861621,0.08581661,3374.8,3374.6,0.542]
[1719720862048,0.50577466,3374.9,3374.6,0.542]
[1719720864228,0.08578996,3374.8,3374.6,0.542]
[1719720865729,0.5057952,3374.9,3374.6,0.542]
[1719720865937,0.0857802,3374.7,3374.6,0.542]
[1719720866238,0.5057952,3374.9,3374.6,0.542]
[1719720866633,0.08578996,3374.8,3374.6,0.542]
[1719720866831,0.08578996,3374.8,3374.4,0.148]
[1719720867077,2.4337,3374.7,3374.4,0.148]
[1719720867265,0.5057952,3374.6,3374.4,0.148]
[1719720867451,0.59150817,3374.6,3374.4,0.148]
[1719720867651,0.59150817,3374.6,3374.4,0.69]
[1719720867849,0.59150817,3374.6,3374.4,0.148]
[1719720868036,0.50593753,3374.6,3374.4,0.148]
[1719720868240,0.50593753,3374.6,3374.4,0.69]
[1719720869461,0.50593753,3374.6,3374.4,0.148]
[1719720869785,2.4337,3374.9,3374.4,0.148]
[1719720869786,2.4337,3374.9,3374.4,0.69]
[1719720869985,0.50592549,3374.8,3374.4,0.69]
[1719720870194,0.08571343,3374.7,3374.4,0.69]
[1719720870490,0.50592549,3374.8,3374.4,0.69]
[1719720870709,0.08570907,3374.6,3374.4,0.69]
[1719720870888,0.50592549,3374.8,3374.4,0.69]
[1719720871193,0.08572965,3374.7,3374.4,0.69]
[1719720871366,2.4337,3374.9,3374.4,0.69]
[1719720871367,0.50592425,3374.8,3374.4,0.69]
[1719720871694,0.08573171,3374.7,3374.4,0.69]
[1719720872104,0.50592425,3374.8,3374.4,0.69]
[1719720872276,0.08571866,3374.6,3374.4,0.69]
[1719720872481,0.50592425,3374.8,3374.4,0.69]
[1719720872681,0.08571314,3374.5,3374.4,0.69]
[1719720872872,0.50592425,3375.1,3374.4,4.08174]
[1719720873070,0.085717,3374.5,3374.4,3.69]
[1719720873271,3.2967,3375.2,3374.4,3.69]
[1719720873600,0.5058829,3375.1,3374.4,3.69]
[1719720873792,0.08576247,3375.0,3374.4,3.69]
[1719720878279,0.08576247,3375.0,3374.4,4.38174]
[1719720878468,0.50581766,3375.1,3374.4,4.38174]
[1719720878807,0.08529554,3374.9,3374.4,4.38174]
[1719720879111,0.08529006,3374.8,3374.6,3.0185]
[1719720879294,0.50581766,3375.3,3374.7,3.0]
[1719720879711,0.08532578,3375.2,3374.7,3.0]
[1719720879930,0.08532578,3375.2,3374.8,0.542]
[1719720880135,0.50581766,3375.3,3374.8,0.542]
[1719720880296,0.08532232,3375.1,3374.8,0.542]
[1719720880496,0.50581766,3375.3,3374.8,1.23015]
[1719720880807,0.08530927,3375.0,3374.8,1.23015]
[1719720880983,0.08530282,3374.9,3374.8,0.542]
[1719720881183,0.50558294,3375.3,3374.8,0.542]
[1719720881593,0.08532878,3375.2,3374.8,0.542]
[1719720881796,0.50558294,3375.3,3374.8,0.542]
[1719720882189,0.08535421,3375.2,3374.8,0.542]
[1719720882406,0.50558294,3375.3,3374.8,0.542]
[1719720882608,0.08535751,3375.2,3374.8,0.542]
[1719720882810,0.50558294,3375.3,3374.8,0.542]
[1719720883234,0.08535751,3375.2,3374.8,0.542]
[1719720883376,0.08535751,3375.2,3374.8,1.23015]
[1719720883580,0.08534446,3375.1,3374.8,1.23015]
[1719720884018,0.08532694,3375.0,3374.8,1.23015]
[1719720884397,0.50556181,3375.3,3374.8,1.23015]
[1719720884593,0.08531389,3374.9,3374.8,0.542]
[1719720884785,0.50556181,3375.3,3374.8,0.542]
[1719720885425,0.08535454,3375.2,3374.8,0.542]
[1719720885790,0.08534149,3375.1,3374.8,0.542]
[1719720886330,0.08532844,3375.0,3374.8,0.542]
[1719720886532,0.50556181,3375.3,3374.8,0.542]
[1719720886689,0.08532528,3374.9,3374.8,0.542]
[1719720886884,0.50556181,3375.3,3374.8,0.542]
[1719720887102,0.08532199,3374.9,3374.8,0.542]
[1719720887301,0.50559041,3375.3,3374.8,0.542]
[1719720887549,0.08532199,3374.9,3374.8,0.542]
[1719720887747,0.50559041,3375.3,3374.8,0.542]
[1719720887947,0.08532528,3374.9,3374.8,0.542]
[1719720888257,0.08532345,3374.9,3374.8,0.542]
[1719720888804,0.08532016,3374.9,3374.8,0.542]
[1719720889117,0.50559041,3375.3,3374.8,0.542]
[1719720889318,0.08532675,3374.9,3374.8,0.542]
[1719720889530,0.50559041,3375.3,3374.8,0.542]
[1719720889744,0.08532528,3374.9,3374.8,0.542]
[1719720890052,0.08532199,3374.9,3374.8,0.542]
[1719720890401,7.33,3375.4,3374.8,0.542]
[1719720890607,0.59093194,3375.3,3374.8,0.542]
[1719720890915,0.08536429,3375.3,3374.8,0.542]
[1719720891121,0.5909567,3375.3,3374.8,0.542]
[1719720893865,0.59093225,3375.3,3374.8,0.542]
[1719720896485,0.79209323,3375.2,3374.8,0.542]
[1719720896695,0.87744349,3375.2,3374.8,0.542]
[1719720897345,0.08535026,3375.2,3374.8,0.542]
[1719720897544,0.50567926,3375.3,3374.8,0.542]
[1719720897876,0.08535091,3375.2,3374.8,0.542]
[1719720898343,0.50567926,3375.3,3374.8,0.542]
[1719720898543,0.08533965,3375.1,3374.8,0.542]
[1719720898981,0.50567926,3375.3,3374.8,0.542]
[1719720899159,0.0831692,3375.0,3374.8,0.542]
[1719720899354,0.50567926,3375.2,3374.8,0.542]
[1719720899861,0.0831667,3375.1,3374.8,0.542]
[1719720900486,0.50562467,3375.3,3374.8,0.542]
[1719720900665,0.08315365,3375.0,3374.8,0.542]
[1719720901004,0.94995567,3375.2,3374.8,0.542]
[1719720901160,0.0831439,3374.9,3374.8,0.542]
[1719720901486,0.0831424,3374.9,3374.8,0.542]
[1719720901682,0.94995567,3375.2,3374.8,0.542]
[1719720901885,0.08315559,3374.9,3374.8,0.542]
[1719720902044,0.50562467,3375.3,3374.8,0.542]
[1719720902252,0.86674401,3375.2,3374.8,0.542]
[1719720903272,0.08318154,3375.2,3374.8,0.542]
[1719720903490,0.50561625,3375.3,3374.8,0.542]
[1719720903717,0.08315803,3375.1,3374.8,0.542]
[1719720903845,0.50561625,3375.3,3374.8,0.542]
[1719720904046,0.08317287,3375.2,3374.8,0.542]
[1719720904247,0.50561625,3375.3,3374.8,0.542]
[1719720904452,0.08317287,3375.2,3374.8,0.542]
[1719720904696,0.50561625,3375.2,3374.8,0.542]
[1719720904994,0.08316312,3375.1,3374.9,2.4723]
[1719720905190,0.08316312,3375.1,3375.0,0.542]
[1719720905390,0.50561625,3375.3,3375.2,0.542]
[1719720905552,0.50543101,3375.3,3375.2,0.542]
[1719720905754,19.93,3375.7,3375.3,2.4723]
[1719720905755,0.50543101,3375.6,3375.3,2.4723]
[1719720905986,0.50543101,3375.6,3375.3,5.4723]
[1719720908698,0.50532782,3375.6,3375.3,5.4723]
[1719720911761,0.50532782,3375.7,3375.3,5.4723]
[1719720911997,0.50533855,3375.7,3375.3,5.4723]
[1719720912180,0.50533855,3375.7,3375.3,6.16003]
[1719720912381,2.59,3375.8,3375.5,0.863]
[1719720914595,2.59,3375.8,3375.4,3.542]
[1719720914793,2.59,3375.8,3375.4,4.405]
[1719720915615,2.59,3375.8,3375.6,1.405]
[1719720915759,2.59,3375.8,3375.6,4.405]
[1719720916398,0.08332277,3375.7,3375.6,4.405]
[1719720916784,2.59,3375.8,3375.6,4.405]
[1719720917158,0.0833422,3375.7,3375.6,4.405]
[1719720917359,2.59,3375.8,3375.6,5.09273]
[1719720917557,0.0833422,3375.7,3375.6,5.09273]
[1719720920832,0.0833422,3375.7,3375.6,4.22973]
[1719720921281,0.0833422,3375.7,3375.6,5.09273]
[1719720923912,0.0833422,3375.7,3375.6,3.0]
[1719720924084,0.0833422,3375.7,3375.4,1.405]
[1719720929190,0.0833422,3375.7,3375.4,0.542]
[1719720929821,0.0833422,3375.7,3375.4,3.021]
[1719720929986,0.0833422,3375.7,3375.5,3.0]
[1719720930190,0.0833422,3375.7,3375.5,3.863]
[1719720935803,0.0833422,3375.7,3375.5,0.863]
[1719720936298,0.0833422,3375.7,3375.4,0.542]
[1719720937029,0.0833422,3375.7,3375.3,0.863]
[1719720941343,0.0833422,3375.7,3375.2,3.542]
[1719720941542,0.0833422,3375.7,3375.3,3.863]
[1719720941832,0.0833422,3375.7,3375.3,0.863]
[1719720942938,0.0833422,3375.7,3375.5,0.542]
[1719720948215,0.58856455,3375.7,3375.5,0.542]
[1719720948629,0.0833422,3375.7,3375.5,0.542]
[1719720949213,0.58854512,3375.7,3375.5,0.542]
[1719720950209,0.58857647,3375.7,3375.5,0.542]
[1719720952436,3.01497647,3375.7,3375.5,3.542]
[1719720952631,0.50523427,3375.6,3375.5,3.542]
[1719720952836,0.50523427,3375.6,3375.5,0.542]
[1719720953040,0.58866343,3375.6,3375.5,0.542]
[1719720953616,0.58872075,3375.6,3375.5,0.542]
[1719720953924,0.58872075,3375.6,3375.3,0.542]
[1719720954124,1.14923283,3375.6,3375.1,3.542]
[1719720954338,0.58872075,3375.6,3375.1,0.542]
[1719720956210,0.58872075,3375.6,3375.1,3.542]
[1719720956409,0.58872075,3375.6,3375.2,0.863]
[1719720956724,0.58863388,3375.6,3375.5,0.542]
[1719720957038,0.08342916,3375.6,3375.5,0.542]
[1719720962461,0.08342916,3375.6,3375.2,4.405]
[1719720966960,0.08342916,3375.6,3375.2,3.0]
[1719720967147,0.08342916,3375.6,3375.1,0.863]
[1719720967957,0.08342916,3375.6,3375.4,0.542]
[1719720968970,0.08342916,3375.6,3375.4,3.542]
[1719720969176,0.5053156,3375.7,3375.5,0.863]
[1719720971894,0.5053156,3375.7,3375.6,0.542]
[1719720974952,0.50530507,3375.7,3375.6,0.542]
[1719720975376,0.50530507,3375.7,3375.4,3.542]
[1719720976454,0.07790084,3375.6,3375.4,3.542]
[1719720982099,0.50525436,3375.7,3375.4,3.542]
[1719720982260,0.07790564,3375.5,3375.4,3.542]
[1719720982662,0.50525436,3375.7,3375.4,3.542]
[1719720982865,0.07790961,3375.5,3375.4,3.542]
[1719720983074,0.50525436,3375.7,3375.4,4.22541]
[1719720983587,0.07792085,3375.6,3375.4,4.22541]
[1719720984691,0.07792085,3375.6,3375.5,1.413]
[1719720984900,0.50527723,3375.7,3375.6,0.542]
[1719720985053,0.50527723,3375.7,3375.6,1.348751]
[1719720985260,0.50527723,3375.7,3375.6,4.348751]
[1719720986279,2.59,3375.8,3375.6,4.348751]
[1719720986478,2.59,3375.8,3375.7,0.863]
[1719720986695,3.04298717,3375.8,3375.7,0.863]
[1719720987465,2.59,3375.8,3375.7,0.863]
[1719720987668,3.04303226,3375.8,3375.7,0.863]
[1719720989269,3.04303226,3375.8,3375.6,3.0]
[1719720989471,0.45303226,3375.7,3375.5,0.542]
[1719720990762,0.45325414,3375.7,3375.5,0.542]
[1719720991408,0.07794382,3375.6,3375.5,0.542]
[1719720996001,0.07794382,3375.6,3375.5,0.9825]
[1719720996182,0.07794382,3375.6,3375.4,0.863]
[1719720996183,0.07794382,3375.6,3375.2,3.542]
[1719720996416,0.45305492,3375.7,3375.2,0.542]
[1719720996732,0.07791694,3375.5,3375.4,0.542]
[1719720996910,0.07792669,3375.6,3375.4,0.542]
[1719720997222,0.07791694,3375.5,3375.4,0.542]
[1719720997418,0.45329494,3375.7,3375.4,0.542]
[1719720997588,0.07792496,3375.5,3375.4,0.542]
[1719720997788,2.59,3375.8,3375.4,0.542]
[1719720998024,0.07792592,3375.5,3375.4,0.542]
[1719720998233,2.59,3375.8,3375.4,0.542]
[1719720998530,0.07791896,3375.5,3375.4,0.542]
[1719720998719,0.07791992,3375.5,3375.4,0.542]
[1719720998915,2.59,3375.8,3375.4,0.542]
[1719720999132,0.53114892,3375.7,3375.4,0.542]
[1719720999814,0.07793516,3375.7,3375.4,0.542]
[1719721001149,0.5311941,3375.7,3375.4,0.542]
[1719721002055,0.5311941,3375.7,3375.6,0.542]
[1719721002209,0.5311941,3375.7,3375.6,1.405]
[1719721002407,0.5311941,3375.7,3375.6,4.405]
[1719721006643,0.07793516,3375.7,3375.6,4.405]
[1719721015675,0.53101339,3375.7,3375.6,4.405]
[1719721015865,0.07793516,3375.7,3375.6,4.405]
[1719721019887,0.53105336,3375.7,3375.6,4.405]
[1719721020083,0.07793516,3375.7,3375.6,4.405]
[1719721020649,0.07793516,3375.7,3375.6,5.13349]
[1719721020851,0.07793516,3375.7,3375.6,5.19273648]
[1719721021061,0.4529437,3376.2,3376.1,0.542]
[1719721021410,7.33,3376.8,3376.4,0.542]
[1719721021712,0.4525981,3376.7,3376.5,0.863]
[1719721022030,22.3344,3376.9,3376.7,0.542]
[1719721022031,19.93,3376.9,3376.7,0.542]
[1719721022170,2.95,3377.1,3376.7,0.542]
[1719721022363,0.45241872,3377.0,3376.7,0.542]
[1719721022704,0.45241872,3377.0,3376.7,1.405]
[1719721023125,0.45241872,3377.0,3376.7,0.542]
[1719721023406,2.95,3377.1,3376.7,0.542]
[1719721025194,0.45256995,3377.0,3376.7,0.542]
[1719721025404,0.45256438,3377.0,3376.7,0.542]
[1719721025589,1.52744,3377.1,3376.7,0.542]
[1719721027323,9.7344,3377.2,3376.7,0.542]
[1719721027826,2.4044,3377.2,3376.7,0.542]
[1719721028326,2.4044,3377.2,3376.7,3.542]
[1719721029231,2.59,3377.3,3376.9,0.542]
[1719721033345,2.59,3377.3,3377.2,1.405]
[1719721033842,2.59,3377.3,3377.2,4.405]
[1719721034054,7.33,3377.6,3377.5,0.542]
[1719721034343,12.3,3378.1,3378.0,0.542]
[1719721036519,12.37603453,3378.1,3378.0,0.542]
[1719721037028,12.37603453,3378.1,3377.9,0.542]
[1719721039623,0.07603453,3378.1,3377.9,0.69]
[1719721039823,2.95,3378.4,3377.9,0.69]
[1719721040046,0.0760384,3378.0,3377.9,0.69]
[1719721040255,2.95,3378.4,3377.9,0.69]
[1719721040453,0.0760384,3378.0,3377.9,0.69]
[1719721040630,1.34098,3378.3,3377.9,0.69]
[1719721040834,0.07603424,3378.0,3377.9,0.69]
[1719721041035,1.34098,3378.3,3377.9,0.69]
[1719721041248,0.07603551,3378.0,3377.9,0.69]
[1719721041443,1.34098,3378.3,3377.9,0.69]
[1719721041647,0.07602892,3378.0,3377.9,0.69]
[1719721041862,1.34098,3378.3,3377.9,0.69]
[1719721042158,0.07602563,3378.0,3377.9,0.69]
[1719721042321,1.34098,3378.3,3377.9,0.69]
[1719721042525,0.07603551,3378.0,3377.9,0.69]
[1719721042721,2.95,3378.4,3377.9,0.69]
[1719721042926,0.07603368,3378.0,3377.9,0.69]
[1719721043124,2.3337,3378.3,3377.9,0.148]
[1719721043383,0.07603698,3378.0,3377.9,0.148]
[1719721043585,2.3337,3378.3,3377.9,0.148]
[1719721043748,0.50351881,3378.2,3377.9,0.148]
[1719721049045,2.3337,3378.1,3377.9,0.148]
[1719721049295,0.863,3378.0,3377.9,0.148]
[1719721049788,0.93904149,3378.0,3377.9,0.148]
[1719721050137,0.07604149,3378.0,3377.9,0.148]
[1719721056983,3.27274149,3378.0,3377.9,0.148]
[1719721057287,4.09761858,3378.0,3377.9,0.148]